fUSD/lending_fUSD_20260423
["ID","MTS","AMOUNT","RATE_DAILY","PERIOD"]
[421005183,1776904234039,-500.0,9.534e-05,2]
[421005184,1776904234049,-234.24855454,9.534e-05,2]
[421005185,1776904234058,-500.0,9.534e-05,2]
[421005186,1776904234067,-500.0,9.534e-05,2]
[421005187,1776904234077,-500.0,9.534e-05,2]
[421005188,1776904234086,-500.0,9.534e-05,2]
[421005189,1776904234095,-500.0,9.534e-05,2]
[421005190,1776904234105,-500.0,9.534e-05,2]
[421005191,1776904234114,-500.0,9.534e-05,2]
[421005192,1776904234123,-500.0,9.534e-05,2]
[421005193,1776904234133,-500.0,9.534e-05,2]
[421005194,1776904234142,-500.0,9.534e-05,2]
[421005195,1776904234151,-500.0,9.534e-05,2]
[421005196,1776904234161,-500.0,9.534e-05,2]
[421005197,1776904234170,-500.0,9.534e-05,2]
[421005198,1776904234179,-500.0,9.534e-05,2]
[421005199,1776904234188,-500.0,9.534e-05,2]
[421005200,1776904234198,-500.0,9.534e-05,2]
[421005201,1776904234208,-500.0,9.534e-05,2]
[421005202,1776904234217,-500.0,9.534e-05,2]
[421005203,1776904234227,-500.0,9.534e-05,2]
[421005204,1776904234236,-500.0,9.534e-05,2]
[421005205,1776904234246,-500.0,9.534e-05,2]
[421005206,1776904234255,-500.0,9.534e-05,2]
[421005207,1776904234265,-500.0,9.534e-05,2]
[421005208,1776904234274,-500.0,9.534e-05,2]
[421005209,1776904234284,-500.0,9.534e-05,2]
[421005210,1776904234294,-500.0,9.534e-05,2]
[421005211,1776904234304,-500.0,9.534e-05,2]
[421005212,1776904234314,-300.0,9.534e-05,2]
[421005213,1776904234324,-500.0,9.534e-05,2]
[421005214,1776904234335,-500.0,9.534e-05,2]
[421005215,1776904234344,-500.0,9.534e-05,2]
[421005216,1776904234354,-500.0,9.534e-05,2]
[421005217,1776904234364,-500.0,9.534e-05,2]
[421005218,1776904234373,-500.0,9.534e-05,2]
[421005219,1776904234383,-242.67389879,9.534e-05,2]
[421005220,1776904234393,-1460.0,9.535e-05,5]
[421005221,1776904234402,-953.0,9.535e-05,5]
[421005222,1776904234412,-500.0,9.57e-05,2]
[421005223,1776904234421,-151.0,9.57e-05,2]
[421005224,1776904234432,-152.0,9.581e-05,7]
[421005225,1776904234442,-166.27,9.589e-05,2]
[421005226,1776904234451,-152.0,9.606e-05,7]
[421005227,1776904234461,-152.0,9.606e-05,7]
[421005228,1776904234470,-152.0,9.616e-05,7]
[421005229,1776904234480,-500.0,9.625e-05,2]
[421005230,1776904234489,-151.0,9.625e-05,2]
[421005231,1776904234499,-160.0,9.628e-05,2]
[421005232,1776904234508,-2351.0,9.636e-05,2]
[421005233,1776904234518,-433.0,9.648e-05,2]
[421005234,1776904234527,-500.0,9.68e-05,2]
[421005235,1776904234536,-151.0,9.68e-05,2]
[421005236,1776904234546,-250.0,9.727e-05,2]
[421005237,1776904234555,-500.0,9.735e-05,2]
[421005238,1776904234564,-151.0,9.735e-05,2]
[421005239,1776904234574,-500.0,9.79e-05,2]
[421005240,1776904234584,-151.0,9.79e-05,2]
[421005241,1776904234593,-500.0,9.808e-05,2]
[421005242,1776904234602,-500.0,9.845e-05,2]
[421005243,1776904234611,-151.0,9.845e-05,2]
[421005244,1776904234621,-500.0,9.873e-05,2]
[421005245,1776904234630,-501.87657932,9.873e-05,2]
[421005246,1776904234640,-500.0,9.873e-05,2]
[421005247,1776904234649,-500.0,9.873e-05,2]
[421005248,1776904234658,-151.0,9.889e-05,2]
[421005249,1776904234667,-500.0,9.891e-05,2]
[421005250,1776904234676,-250.56414242,9.891e-05,2]
[421005251,1776904234686,-629.74261635,9.891e-05,2]
[421005252,1776904234696,-500.0,9.891e-05,2]
[421005253,1776904234705,-500.0,9.891e-05,2]
[421005254,1776904234714,-500.0,9.891e-05,2]
[421005255,1776904234723,-253.39892329,9.891e-05,2]
[421005256,1776904234732,-345412.72924939,9.892e-05,2]
[421005257,1776904234745,-2316.45777587,9.892e-05,2]
[421005258,1776904234756,-6423.31769229,9.892e-05,2]
[421005262,1776904237993,-6031.0,9.442e-05,2]
[421005263,1776904238003,-500.0,9.891e-05,2]
[421005264,1776904238013,-71469.0,9.892e-05,2]
[421005265,1776904238024,-587.54280092,9.892e-05,2]
[421005266,1776904238036,-3864.78770353,9.892e-05,2]
[421005267,1776904238048,-997.91895596,9.892e-05,2]
[421005268,1776904238269,-11740.76177764,9.892e-05,2]
[421005269,1776904238279,-18686.29715037,9.892e-05,2]
[421005270,1776904238325,-1108.13607521,9.892e-05,2]
[421005366,1776904240002,-699.42965099,9.892e-05,2]
[421005368,1776904240013,-809.17947993,9.892e-05,2]
[421005370,1776904240022,-6995.82052007,9.892e-05,2]
[421005410,1776904240378,-342.108,9.892e-05,2]
[421005412,1776904240389,-405.26152993,9.892e-05,2]
[421005523,1776904242816,-979.16666667,9.442e-05,2]
[421005526,1776904244698,-68.83333333,9.442e-05,2]
[421005527,1776904244707,-868.87621742,9.892e-05,2]
[421005528,1776904244718,-1048.0,9.892e-05,2]
[421005529,1776904244737,-10800.0,9.892e-05,2]
[421005530,1776904244748,-603.0,9.892e-05,2]
[421005531,1776904244758,-321.4452517,9.892e-05,2]
[421005532,1776904244769,-351.012724,9.892e-05,2]
[421005533,1776904244788,-16397.43598648,9.892e-05,2]
[421005534,1776904244797,-500.0,9.9e-05,2]
[421005535,1776904244807,-500.0,9.955e-05,2]
[421005536,1776904244816,-288.44,0.0001,2]
[421005537,1776904244825,-151.0,0.0001,2]
[421005538,1776904244834,-500.0,0.0001,2]
[421005539,1776904244843,-151.0,0.0001,2]
[421005540,1776904244851,-500.0,0.0001,2]
[421005541,1776904244860,-200.0,0.0001,2]
[421005542,1776904244869,-151.0,0.0001,2]
[421005543,1776904244878,-500.0,0.0001,2]
[421005544,1776904244887,-151.0,0.0001,2]
[421005545,1776904244897,-500.0,0.0001,2]
[421005546,1776904244906,-151.0,0.0001,2]
[421005547,1776904244915,-500.0,0.0001,2]
[421005548,1776904244924,-500.0,0.0001,2]
[421005549,1776904244933,-151.0,0.0001,2]
[421005550,1776904244943,-175.556479,0.0001,2]
[421005551,1776904244952,-151.0,0.0001,2]
[421005552,1776904244961,-151.0,0.0001,2]
[421005553,1776904244970,-151.0,0.0001,2]
[421005554,1776904244979,-151.0,0.0001,2]
[421005555,1776904244989,-151.0,0.0001,2]
[421005556,1776904244998,-4200.0,0.0001,3]
[421005557,1776904245007,-151.0,0.00010003,2]
[421005558,1776904245016,-1481.23780761,0.00010008,2]
[421005559,1776904245026,-200.0,0.00010008,2]
[421005560,1776904245036,-217.15233878,0.00010008,2]
[421005561,1776904245045,-181.08010149,0.00010008,2]
[421005562,1776904245054,-500.0,0.0001001,2]
[421005563,1776904245063,-166.27,0.00010046,2]
[421005564,1776904245072,-1845.28298544,0.000101,2]
[421005565,1776904245081,-1252.88,0.000101,2]
[421005566,1776904245091,-1252.88,0.000101,2]
[421005567,1776904245099,-1252.88,0.000101,2]
[421005568,1776904245108,-1620.71,0.000101,2]
[421005569,1776904245117,-405.17,0.000101,2]
[421005570,1776904245126,-405.17,0.000101,2]
[421005571,1776904245135,-405.17,0.000101,2]
[421005572,1776904245144,-2000.0,0.000101,2]
[421005573,1776904245154,-200.0,0.000101,2]
[421005574,1776904245163,-200.0,0.000101,2]
[421005575,1776904245172,-151.34081859,0.000101,2]
[421005576,1776904245181,-1532.0,0.000101,2]
[421005577,1776904245191,-1532.0,0.000101,2]
[421005578,1776904245201,-1532.0,0.000101,2]
[421005579,1776904245210,-500.0,0.000101,2]
[421005580,1776904245219,-1203.23960545,0.000101,2]
[421005581,1776904245246,-796.76039455,0.000101,2]
[421005582,1776904245255,-161.0,0.000101,3]
[421005583,1776904245264,-156.0,0.000101,3]
[421005584,1776904245273,-309.0,0.000101,3]
[421005585,1776904245282,-137.23960545,0.000101,3]
[421005593,1776904245803,-152.0,0.0001006,7]
[421005595,1776904245812,-17.76039455,0.000101,3]
[421005596,1776904245821,-211.91360085,0.000101,2]
[421005597,1776904245830,-89.56350302,0.000101,2]
[421005598,1776904245860,-61.43649698,0.000101,2]
[421005599,1776904245870,-166.66,0.00010185,2]
[421005600,1776904245879,-151.29,0.00010196,2]
[421005601,1776904245888,-1332.7769874,0.00010201,2]
[421005602,1776904245897,-200.0,0.00010201,2]
[421005603,1776904245907,-152.0,0.00010258,2]
[421005604,1776904245916,-185.3567589,0.00010258,2]
[421005605,1776904245925,-755.01046768,0.00010259,2]
[421005606,1776904245936,-844.98953232,0.00010259,2]
[421005607,1776904245946,-288.44,0.00010274,2]
[421005608,1776904245955,-200.0,0.00010303,2]
[421005609,1776904245964,-757.82730558,0.00010371,2]
[421005610,1776904245973,-200.0,0.00010406,2]
[421005611,1776904245983,-350.0,0.00010423,2]
[421005612,1776904245992,-350.0,0.00010429,2]
[421005613,1776904246002,-1208.7431621,0.00010471,2]
[421005620,1776904246716,-3123.22233765,0.00010471,2]
[421005621,1776904246726,-142.13966235,0.00010486,2]
[421005622,1776904246738,-17.86033765,0.00010486,2]
[421005623,1776904246747,-637.779434,0.00010486,2]
[421005624,1776904246756,-694.14702835,0.00010486,2]
[421005640,1776904894760,2354.822,7.707e-05,2]
[421005641,1776904894876,182.471,7.707e-05,2]
[421005644,1776905102601,150.00000001,7.077e-05,2]
[421005645,1776905122524,150.0,7.077e-05,2]
[421005646,1776905127697,150.0,7.077e-05,2]
[421005647,1776905173848,9550.00999999,7e-05,2]
[421005648,1776905173870,10000.01,7e-05,2]
[421005649,1776905173891,10000.01,7e-05,2]
[421005650,1776905173914,10000.01,7e-05,2]
[421005651,1776905173936,10000.01,7e-05,2]
[421005652,1776905173958,10000.01,7e-05,2]
[421005653,1776905173980,10000.01,7e-05,2]
[421005654,1776905174002,10000.01,7e-05,2]
[421005655,1776905174024,10000.01,7e-05,2]
[421005656,1776905174047,10000.01,7e-05,2]
[421005657,1776905174071,449.90000001,7e-05,2]
[421005658,1776905191680,2202.68998326,7e-05,2]
[421005659,1776905191703,2652.58998327,7e-05,2]
[421005660,1776905192794,-2713.36,7e-05,2]
[421005661,1776905192951,-5000.01,7e-05,2]
[421005662,1776905193077,-5000.01,7e-05,2]
[421005663,1776905193174,-5000.01,7e-05,2]
[421005664,1776905193272,-5000.01,7e-05,2]
[421005665,1776905195569,-5000.01,7e-05,2]
[421005666,1776905195582,-5000.01,7e-05,2]
[421005667,1776905195595,-5000.01,7e-05,2]
[421005668,1776905209552,-5000.01,7e-05,2]
[421005669,1776905209566,-5000.01,7e-05,2]
[421005670,1776905212791,-5000.01,7e-05,2]
[421005671,1776905212924,-5000.01,7e-05,2]
[421005672,1776905213088,-5000.01,7e-05,2]
[421005673,1776905213146,-5000.01,7e-05,2]
[421005674,1776905213270,-5000.01,7e-05,2]
[421005675,1776905213563,-5000.01,7e-05,2]
[421005676,1776905213578,-5000.01,7e-05,2]
[421005677,1776905213607,-5000.01,7e-05,2]
[421005678,1776905216568,-4460.11687854,7e-05,2]
[421005679,1776905216673,-10000.01,7e-05,2]
[421005680,1776905216796,-10000.01,7e-05,2]
[421005681,1776905216823,-5000.01,7e-05,2]
[421005682,1776905216907,-10000.01,7e-05,2]
[421005683,1776905217003,-5000.01,7e-05,2]
[421005684,1776905217061,-10000.01,7e-05,2]
[421005685,1776905217123,-5000.01,7e-05,2]
[421005686,1776905217179,-10000.01,7e-05,2]
[421005687,1776905217755,-5000.01,7e-05,2]
[421005688,1776905217769,-10000.01,7e-05,2]
[421005689,1776905217793,-5000.01,7e-05,2]
[421005690,1776905217807,-10000.01,7e-05,2]
[421005691,1776905217822,-5000.01,7e-05,2]
[421005692,1776905217836,-5000.01,7e-05,2]
[421005693,1776905217850,-5000.01,7e-05,2]
[421005694,1776905217877,-5000.01,7e-05,2]
[421005695,1776905217928,-5000.01,7e-05,2]
[421005696,1776905220825,-10000.01,7e-05,2]
[421005697,1776905220848,-10000.01,7e-05,2]
[421005698,1776905225729,-5000.01,7e-05,2]
[421005699,1776905225832,-5000.01,7e-05,2]
[421005700,1776905225926,-5000.01,7e-05,2]
[421005701,1776905232705,1000.0,6.4e-05,2]
[421005702,1776905232883,-372.0,7e-05,3]
[421005703,1776905233062,-4256.01,7e-05,2]
[421005704,1776905233075,-5000.01,7e-05,2]
[421005705,1776905233090,-5000.01,7e-05,2]
[421005706,1776905233506,1653.02755326,6.5e-05,2]
[421005707,1776905233530,346.97244674,6.5e-05,2]
[421005708,1776905234849,-5000.01,7e-05,2]
[421005709,1776905235017,-5000.01,7e-05,2]
[421005710,1776905235154,-5000.01,7e-05,2]
[421005711,1776905235599,2306.05510652,6.6e-05,2]
[421005712,1776905235623,693.94489348,6.6e-05,2]
[421005713,1776905237559,-10000.01,7e-05,2]
[421005714,1776905238217,-4100.0,6.7e-05,2]
[421005715,1776905238403,-1800.01,7e-05,2]
[421005716,1776905238417,-10000.01,7e-05,2]
[421005717,1776905238435,-10000.01,7e-05,2]
[421005718,1776905238449,-10000.01,7e-05,2]
[421005719,1776905240796,-5000.01,6.8e-05,2]
[421005720,1776905240920,-99.99,6.8e-05,2]
[421005721,1776905240958,-4800.03,7e-05,2]
[421005722,1776905241016,-5000.01,7e-05,2]
[421005723,1776905245213,-10000.01,7e-05,2]
[421005724,1776905245231,-10000.01,7e-05,2]
[421005725,1776905245255,-10000.01,7e-05,2]
[421005726,1776905245292,-10000.01,7e-05,2]
[421005727,1776905246638,-10000.01,7e-05,2]
[421005728,1776905256515,-200.0,6.9e-05,2]
[421005729,1776905256544,-1000.0,6.9e-05,2]
[421005730,1776905256732,-7600.01,7e-05,2]
[421005731,1776905256788,-10000.01,7e-05,2]
[421005732,1776905256802,-10000.01,7e-05,2]
[421005733,1776905256820,-10000.01,7e-05,2]
[421005734,1776905256837,-10000.01,7e-05,2]
[421005735,1776905256867,-10000.01,7e-05,2]
[421005736,1776905256892,-10000.01,7e-05,2]
[421005737,1776905265764,-10000.01,7e-05,2]
[421005738,1776905271855,-10000.01,7e-05,2]
[421005739,1776905271960,-10000.01,7e-05,2]
[421005740,1776905272120,-10000.01,7e-05,2]
[421005741,1776905272248,-10000.01,7e-05,2]
[421005742,1776905272394,-10000.01,7e-05,2]
[421005743,1776905272504,-10000.01,7e-05,2]
[421005744,1776905272605,-10000.01,7e-05,2]
[421005745,1776905280897,-10000.01,7e-05,2]
[421005746,1776905280977,-10000.01,7e-05,2]
[421005747,1776905289971,-300.0,6.999e-05,2]
[421005748,1776905290002,-300.0,6.999e-05,2]
[421005749,1776905290031,-150.0,6.999e-05,2]
[421005750,1776905290060,-767.0,7e-05,3]
[421005751,1776905290159,-6966.01,7e-05,2]
[421005752,1776905292049,-10000.01,7e-05,2]
[421005753,1776905292334,-155.0,7e-05,3]
[421005754,1776905292344,-9845.01,7e-05,2]
[421005755,1776905292358,-10000.01,7e-05,2]
[421005756,1776905292372,-10000.01,7e-05,2]
[421005757,1776905292394,-10000.01,7e-05,2]
[421005758,1776905292407,-10000.01,7e-05,2]
[421005759,1776905292426,-10000.01,7e-05,2]
[421005760,1776905292440,-10000.01,7e-05,2]
[421005761,1776905293081,-10000.01,7e-05,2]
[421005762,1776905339405,-10000.01,7e-05,2]
[421005763,1776905339438,-10000.01,7e-05,2]
[421005764,1776905339549,-10000.01,7e-05,2]
[421005765,1776905339664,-10000.01,7e-05,2]
[421005766,1776905339772,-10000.01,7e-05,2]
[421005767,1776905339864,-10000.01,7e-05,2]
[421005768,1776905339977,-10000.01,7e-05,2]
[421005769,1776905380276,-300.0,6.999e-05,2]
[421005770,1776905380306,-450.0,6.999e-05,2]
[421005771,1776905380337,-466.22701893,6.999e-05,2]
[421005772,1776905380366,-264.13801703,6.999e-05,2]
[421005773,1776905380414,-166.49063401,6.999e-05,2]
[421005774,1776905380449,-500.0,6.999e-05,2]
[421005775,1776905380489,-500.0,6.999e-05,2]
[421005776,1776905380525,-500.0,6.999e-05,2]
[421005777,1776905380559,-500.0,6.999e-05,2]
[421005778,1776905380592,-500.0,6.999e-05,2]
[421005779,1776905380626,-500.0,6.999e-05,2]
[421005780,1776905380660,-206.29866006,6.999e-05,2]
[421005781,1776905380772,-293.70133994,6.999e-05,2]
[421005782,1776905380806,-500.0,6.999e-05,2]
[421005783,1776905380840,-500.0,6.999e-05,2]
[421005784,1776905380873,-500.0,6.999e-05,2]
[421005785,1776905380908,-500.0,6.999e-05,2]
[421005786,1776905380941,-366.28835047,6.999e-05,2]
[421005787,1776905380975,-500.0,6.999e-05,2]
[421005788,1776905381016,-500.0,6.999e-05,2]
[421005789,1776905381051,-500.0,6.999e-05,2]
[421005790,1776905381085,-500.0,6.999e-05,2]
[421005791,1776905381120,-180.03061918,6.999e-05,2]
[421005792,1776905381287,-319.96938082,6.999e-05,2]
[421005793,1776905381321,-500.0,6.999e-05,2]
[421005794,1776905381371,-500.0,6.999e-05,2]
[421005795,1776905381427,-500.0,6.999e-05,2]
[421005796,1776905381491,-500.0,6.999e-05,2]
[421005797,1776905381552,-500.0,6.999e-05,2]
[421005798,1776905381603,-500.0,6.999e-05,2]
[421005799,1776905381657,-500.0,6.999e-05,2]
[421005800,1776905381723,-500.0,6.999e-05,2]
[421005801,1776905381774,-500.0,6.999e-05,2]
[421005802,1776905382065,-500.0,6.999e-05,2]
[421005803,1776905382137,-500.0,6.999e-05,2]
[421005804,1776905382204,-500.0,6.999e-05,2]
[421005805,1776905382267,-500.0,6.999e-05,2]
[421005806,1776905382329,-500.0,6.999e-05,2]
[421005807,1776905382390,-500.0,6.999e-05,2]
[421005808,1776905382449,-500.0,6.999e-05,2]
[421005809,1776905382505,-500.0,6.999e-05,2]
[421005810,1776905382570,-500.0,6.999e-05,2]
[421005811,1776905382637,-173.89415449,6.999e-05,2]
[421005812,1776905382697,-134.4512176,6.999e-05,2]
[421005813,1776905382853,-383.31925582,6.999e-05,2]
[421005814,1776905382898,-500.0,6.999e-05,2]
[421005815,1776905382946,-500.0,6.999e-05,2]
[421005816,1776905382990,-500.0,6.999e-05,2]
[421005817,1776905383034,-269.4730338,6.999e-05,2]
[421005818,1776905383077,-500.0,6.999e-05,2]
[421005819,1776905383121,-500.0,6.999e-05,2]
[421005820,1776905383165,-500.0,6.999e-05,2]
[421005821,1776905383212,-500.0,6.999e-05,2]
[421005822,1776905383261,-500.0,6.999e-05,2]
[421005823,1776905383309,-194.42542076,6.999e-05,2]
[421005824,1776905383453,-305.57457924,6.999e-05,2]
[421005825,1776905383499,-500.0,6.999e-05,2]
[421005826,1776905383548,-340.0,6.999e-05,2]
[421005827,1776905383591,-979.0,7e-05,3]
[421005828,1776905383630,-155.0,7e-05,3]
[421005829,1776905389067,-188.63579418,7e-05,2]
[421005830,1776905389099,-340.0,7e-05,2]
[421005831,1776905389192,-979.0,7e-05,2]
[421005832,1776905389211,-155.0,7e-05,2]
[421005833,1776905389240,-5440.86084152,7e-05,2]
[421005834,1776905389278,-10000.01,7e-05,2]
[421005835,1776905389312,-10000.01,7e-05,2]
[421005836,1776905390083,-10000.01,7e-05,2]
[421005837,1776905390322,-10000.01,7e-05,2]
[421005838,1776905390340,-10000.01,7e-05,2]
[421005839,1776905390378,-10000.01,7e-05,2]
[421005840,1776905390449,-10000.01,7e-05,2]
[421005841,1776905390467,-10000.01,7e-05,2]
[421005842,1776905390485,-10000.01,7e-05,2]
[421005843,1776905390499,-10000.01,7e-05,2]
[421005844,1776905390518,-10000.01,7e-05,2]
[421005845,1776905405432,-300.0,6.999e-05,2]
[421005846,1776905405461,-300.0,6.999e-05,2]
[421005847,1776905405491,-300.0,6.999e-05,2]
[421005848,1776905405521,-1200.0,6.999e-05,2]
[421005849,1776905405646,-5800.01,7e-05,2]
[421005850,1776905405682,-10000.01,7e-05,2]
[421005851,1776905405818,-10000.01,7e-05,2]
[421005856,1776905419554,-10000.01,6.9e-05,2]
[421005857,1776905419657,-10000.01,6.9e-05,2]
[421005858,1776905424288,-10000.01,6.9e-05,2]
[421005859,1776905424411,-10000.01,6.9e-05,2]
[421005860,1776905424529,-10000.01,6.9e-05,2]
[421005861,1776905424656,-10000.01,6.9e-05,2]
[421005862,1776905424804,-10000.01,6.9e-05,2]
[421005863,1776905424927,-10000.01,6.9e-05,2]
[421005864,1776905425060,-10000.01,6.9e-05,2]
[421005865,1776905425180,-10000.01,6.9e-05,2]
[421005872,1776905432053,-34330.7356,6.9e-05,2]
[421005873,1776905432063,-659.61649731,6.999e-05,2]
[421005874,1776905432072,-241.8,6.999e-05,2]
[421005875,1776905432081,-155.0,7e-05,3]
[421005876,1776905432091,-1157.0,7e-05,3]
[421005877,1776905432100,-155.0,7e-05,3]
[421005878,1776905432109,-160.0,7e-05,3]
[421005879,1776905432118,-103834.88281758,7e-05,2]
[421005880,1776905432129,-7894.78908607,7e-05,2]
[421005881,1776905432149,-1358.59112378,7e-05,2]
[421005882,1776905432164,-781.51955281,7e-05,2]
[421005883,1776905432175,-501.52740981,7e-05,2]
[421005884,1776905432221,-406.80539071,7e-05,2]
[421005885,1776905432233,-3319.77029272,7e-05,2]
[421005886,1776905432271,-534.28933376,7e-05,2]
[421005887,1776905432327,-12840.85712798,7e-05,2]
[421005904,1776905438216,-14619.42564278,7e-05,2]
[421005905,1776905438229,-1000.0,7e-05,2]
[421005906,1776905438257,-496.19290314,7e-05,2]
[421005907,1776905438278,-2275.98803234,7e-05,2]
[421005908,1776905438330,-8188.68416012,7e-05,2]
[421005909,1776905438342,-618.6790189,7e-05,2]
[421005910,1776905438353,-2041.44350403,7e-05,2]
[421006047,1776905440495,-208358.60714356,7e-05,2]
[421006048,1776905440605,-16339.72992309,7e-05,2]
[421006049,1776905440762,-394.73101268,7e-05,2]
[421006050,1776905440815,-2190.3681756,7e-05,2]
[421006068,1776905443355,-335.04991627,6.999e-05,2]
[421006077,1776905448013,-152.0,6.974e-05,7]
[421006078,1776905448023,-152.0,6.974e-05,7]
[421006079,1776905448032,-152.0,6.974e-05,7]
[421006080,1776905448042,-441.95008373,6.999e-05,2]
[421006081,1776905448051,-39050.86082123,7e-05,2]
[421006082,1776905448062,-4952.7179,7e-05,2]
[421006083,1776905448184,-538.82460119,7e-05,2]
[421006084,1776905459443,-1101.69807098,6.999e-05,2]
[421006085,1776905461146,300.0,6.999e-05,2]
[421006086,1776905461177,300.0,6.999e-05,2]
[421006087,1776905461946,150.0,6.999e-05,2]
[421006088,1776905474186,-1188.0,7e-05,3]
[421006089,1776905474290,-6874.01,7e-05,2]
[421006090,1776905474347,-10000.01,7e-05,2]
[421006091,1776905474396,-10000.01,7e-05,2]
[421006092,1776905474505,-10000.01,7e-05,2]
[421006093,1776905474618,-10000.01,7e-05,2]
[421006094,1776905474766,-155.0,7e-05,3]
[421006095,1776905474800,-9690.01,7e-05,2]
[421006096,1776905474854,-10000.01,7e-05,2]
[421006097,1776905475062,-10000.01,7e-05,2]
[421006098,1776905475180,-10000.01,7e-05,2]
[421006099,1776905475320,-10000.01,7e-05,2]
[421006101,1776905500308,-180.69662149,6.86e-05,2]
[421006102,1776905502891,-2144.6,6.86e-05,2]
[421006103,1776905545812,-580.42137851,6.86e-05,2]
[421006104,1776905545834,-222.256,6.86e-05,2]
[421006105,1776905545862,-420.86457764,6.86e-05,3]
[421006106,1776905595032,150.0,6.654e-05,2]
[421006107,1776905647052,1332.0,6.654e-05,3]
[421006108,1776905653637,153.0,6.654e-05,3]
[421006109,1776905712334,1265.0,6.654e-05,3]
[421006110,1776905712401,210.0,6.654e-05,3]
[421006111,1776905751555,163.0,6.654e-05,3]
[421006112,1776905766706,1202.0,6.654e-05,3]
[421006113,1776905775143,153.0,6.654e-05,3]
[421006114,1776905794922,866.34,0.00010492,30]
[421006115,1776905827037,1142.0,6.654e-05,3]
[421006116,1776905834732,153.0,6.654e-05,3]
[421006117,1776905887236,1085.0,6.654e-05,3]
[421006119,1776905907336,153.0,6.654e-05,3]
[421006120,1776905947734,1030.0,6.654e-05,3]
[421006122,1776905957027,153.0,6.654e-05,3]
[421006123,1776906004418,309.34465431,6e-05,2]
[421006124,1776906006885,979.0,6.654e-05,3]
[421006125,1776906008041,200.0,6.654e-05,3]
[421006126,1776906023161,154.0,6.654e-05,3]
[421006128,1776906051653,161.0,6.654e-05,3]
[421006129,1776906067331,997.0,6.654e-05,3]
[421006130,1776906088343,200.0,6.8e-05,2]
[421006131,1776906128579,967.0,6.654e-05,3]
[421006132,1776906134733,154.0,6.654e-05,3]
[421006133,1776906185755,938.0,6.654e-05,3]
[421006134,1776906203345,154.0,6.654e-05,3]
[421006135,1776906227378,200.0,6.8e-05,2]
[421006136,1776906245375,891.0,6.654e-05,3]
[421006137,1776906263446,154.0,6.654e-05,3]
[421006140,1776906305690,878.0,6.654e-05,3]
[421006141,1776906308159,197.0,6.654e-05,3]
[421006142,1776906311357,154.0,6.654e-05,3]
[421006143,1776906319348,150.21880537,6.189e-05,2]
[421006144,1776906319487,150.0,6.189e-05,2]
[421006145,1776906319557,150.0,6.533e-05,2]
[421006146,1776906319692,150.0,6.189e-05,2]
[421006147,1776906319791,150.0,6.533e-05,2]
[421006148,1776906321077,150.0,6.189e-05,2]
[421006149,1776906321140,150.0,6.418e-05,2]
[421006150,1776906321218,150.0,6.647e-05,2]
[421006151,1776906326304,150.0,6.189e-05,2]
[421006152,1776906326541,150.0,6.189e-05,2]
[421006153,1776906326904,167.61615929,6.189e-05,2]
[421006154,1776906332741,150.0,6.189e-05,2]
[421006155,1776906333251,150.0,6.327e-05,2]
[421006156,1776906333286,150.0,6.464e-05,2]
[421006157,1776906333321,150.0,6.602e-05,2]
[421006158,1776906333360,150.0,6.739e-05,2]